bitfinex-derivatives/quotes_SOLF0:USTF0_20250720
["timestamp","ask_amount","ask_price","bid_price","bid_amount"]
[1753022185506,3.07,182.03,182.02,8.5314]
[1753022185701,5.34523777,182.03,182.02,8.5314]
[1753022187708,5.34523777,182.03,182.02,3.04]
[1753022190407,3.07,182.03,182.02,8.5314]
[1753022190607,5.34523777,182.03,182.02,8.5314]
[1753022193014,5.34523777,182.03,182.02,3.04]
[1753022193613,5.34523777,182.03,182.02,8.5314]
[1753022194916,5.34523777,182.03,182.02,3.04]
[1753022195413,5.34523777,182.03,182.02,8.5314]
[1753022195715,5.34523777,182.03,182.02,3.04]
[1753022197416,10.83633777,182.03,182.02,3.04]
[1753022197616,3.1,182.02,181.96,2.95]
[1753022197910,2.27523777,181.99,181.96,2.95]
[1753022198113,2.27523777,181.99,181.98,5.4924]
[1753022198316,2.27523777,181.99,181.93,4.58493965]
[1753022198510,2.27523777,181.95,181.94,2.95]
[1753022198710,5.37523777,181.95,181.94,8.4437]
[1753022198909,2.27523777,181.95,181.94,8.4437]
[1753022199711,5.37523777,181.97,181.96,8.4432]
[1753022200212,5.37523777,181.97,181.96,2.95]
[1753022200812,2.27523777,181.97,181.96,8.4432]
[1753022201014,2.27523777,182.0,181.96,2.95]
[1753022201216,5.37523777,182.0,181.96,2.95]
[1753022201415,101.12,182.04,181.96,2.95]
[1753022201416,5.37523777,182.02,181.96,2.95]
[1753022201917,5.37523777,182.02,181.99,5.4921]
[1753022202119,5.37523777,182.02,182.0,2.95]
[1753022202617,3.1,182.02,182.01,2.95]
[1753022202820,5.37523777,182.03,182.01,2.95]
[1753022203212,5.37523777,182.03,181.94,2.27523777]
[1753022203213,2.27523777,182.03,182.0,5.4919]
[1753022203417,3.1,182.02,182.0,5.4919]
[1753022204012,3.1,182.02,182.01,2.95]
[1753022204720,3.1,182.02,182.01,8.4417]
[1753022205016,3.1,182.02,182.01,2.95]
[1753022206923,3.1,182.03,181.96,2.95]
[1753022207316,3.1,182.03,181.96,4.58493965]
[1753022207512,3.1,182.03,181.97,2.95]
[1753022208828,3.1,182.03,182.02,5.4914]
[1753022209125,3.1,182.03,182.02,8.4414]
[1753022209919,3.1,182.05,181.97,2.95]
[1753022210119,3.1,182.05,181.98,2.27523777]
[1753022210320,3.1,182.05,181.99,2.95]
[1753022211619,2.27523777,182.0,181.97,4.58493965]
[1753022211819,4.55047554,181.98,181.9,4.58493965]
[1753022212122,4.55047554,181.98,181.93,2.95]
[1753022212123,5.37523777,181.94,181.93,2.95]
[1753022213024,5.37523777,181.94,181.93,8.4441]
[1753022213619,2.27523777,181.94,181.93,8.4441]
[1753022215427,2.27523777,181.96,181.93,2.95]
[1753022216826,2.27523777,181.96,181.95,5.4935]
[1753022217029,2.27523777,181.96,181.95,8.4435]
[1753022218631,2.27523777,181.98,181.95,2.95]
[1753022219227,2.27523777,181.98,181.97,5.4929]
[1753022219427,2.27523777,181.98,181.97,8.6029]
[1753022219932,5.48523777,181.98,181.97,8.6029]
[1753022220133,2.27523777,181.98,181.97,8.6029]
[1753022220634,5.48523777,181.98,181.97,8.6029]
[1753022223234,2.27523777,181.98,181.97,8.6029]
[1753022223440,5.48523777,181.98,181.97,8.6029]
[1753022234140,5.48523777,181.98,181.91,3.11]
[1753022234339,5.48523777,181.93,181.91,3.11]
[1753022234836,2.27523777,181.93,181.91,3.11]
[1753022235345,2.27523777,181.93,181.92,8.6044]
[1753022235742,5.48523777,181.94,181.92,3.11]
[1753022236842,5.48523777,181.94,181.93,8.6041]
[1753022237540,5.48523777,181.94,181.93,3.11]
[1753022238140,5.48523777,181.94,181.93,8.6041]
[1753022238649,5.48523777,181.94,181.93,3.11]
[1753022239343,5.48523777,181.94,181.93,8.6041]
[1753022240345,2.27523777,181.94,181.93,8.6041]
[1753022240536,5.48523777,181.94,181.93,8.6041]
[1753022242447,15.28543485,182.18,181.97,36.08]
[1753022242743,332.1531627,182.3,182.18,3.11]
[1753022243041,436.50840047,182.3,182.2,2.27523777]
[1753022243344,436.50840047,182.3,182.21,3.11]
[1753022243544,334.42840047,182.3,182.2,2.27523777]
[1753022243746,334.42840047,182.3,182.23,3.11]
[1753022244241,2.27523777,182.3,182.23,3.11]
[1753022244449,2.22,182.31,182.23,3.11]
[1753022245548,2.27523777,182.3,182.23,3.11]
[1753022245746,2.22,182.29,182.23,3.11]
[1753022247948,2.22,182.29,182.23,5.4851]
[1753022248143,2.27523777,182.3,182.25,3.02]
[1753022248340,2.22,182.27,182.25,3.02]
[1753022248540,2.27523777,182.3,182.26,3.02]
[1753022249045,2.22,182.27,182.17,4.58493965]
[1753022249252,2.27523777,182.22,182.18,5.65430713]
[1753022249446,2.22,182.2,182.18,3.02]
[1753022249646,2.22,182.33,182.16,5.29523777]
[1753022249849,4.49523777,182.25,182.18,3.02]
[1753022250146,4.49523777,182.25,182.2,3.02]
[1753022250342,2.27523777,182.25,182.2,3.02]
[1753022250550,2.22,182.24,182.16,2.27523777]
[1753022250853,2.22,182.2,182.18,3.02]
[1753022251149,2.22,182.2,182.19,5.65133881]
[1753022251349,101.94,182.29,182.22,3.02]
[1753022251350,2.22,182.25,182.22,3.02]
[1753022251549,2.22,182.24,182.22,3.02]
[1753022251952,2.22,182.23,182.18,3.02]
[1753022252142,2.27523777,182.22,182.18,3.02]
[1753022252454,101.94,182.29,182.18,3.02]
[1753022252455,4.49523777,182.2,182.18,3.02]
[1753022254345,2.22,182.19,182.18,3.02]
[1753022254550,2.22,182.19,182.17,3.02]
[1753022254948,2.22,182.17,182.13,3.02]
[1753022255150,2.22,182.14,182.11,3.02]
[1753022255453,4.49523777,182.13,182.12,2.62347486]
[1753022255651,4.49523777,182.13,182.12,3.02]
[1753022256054,2.27523777,182.13,182.12,3.02]
[1753022256952,2.27523777,182.13,182.06,3.02]
[1753022256953,4.49523777,182.13,182.06,3.02]
[1753022257154,3.71666443,182.1,182.07,2.62319059]
[1753022257353,5.93666443,182.1,182.08,5.64319059]
[1753022257548,2.22,182.08,182.06,3.02]
[1753022257745,2.22,182.09,181.99,4.58493965]
[1753022257946,3.71666443,182.07,182.01,3.02]
[1753022258254,2.22,182.05,182.03,3.02]
[1753022258556,5.93666443,182.04,181.98,2.6247356]
[1753022258753,5.93666443,182.04,181.95,3.02]
[1753022258957,5.93666443,182.04,181.97,3.02]
[1753022259256,7.7113,182.03,181.99,3.02]
[1753022260152,9.20756443,182.04,182.0,3.02]
[1753022261149,5.4912,182.03,182.0,3.02]
[1753022265255,2.22,182.03,181.95,3.02]
[1753022265458,2.22,182.03,181.97,3.02]
[1753022265655,5.4917,182.01,181.97,3.02]
[1753022265853,0.95622785,182.15,181.99,3.02]
[1753022266052,5.93666443,182.08,182.0,4.50749916]
[1753022266263,5.4905,182.06,182.02,3.02]
[1753022266459,5.93666443,182.08,182.02,3.02]
[1753022266958,2.22,182.04,181.98,3.02]
[1753022267161,3.71666443,181.99,181.98,3.02]
[1753022267860,3.71666443,181.99,181.93,5.494]
[1753022268058,3.71666443,181.99,181.88,375.12416007]
[1753022268059,3.25,181.98,181.94,4.50935156]
[1753022268361,3.71666443,181.96,181.9,4.58493965]
[1753022268552,3.71666443,181.96,181.92,5.4941]
[1753022268751,3.71666443,181.96,181.93,4.50946842]
[1753022268956,3.25,181.95,181.88,4.58493965]
[1753022269159,3.71666443,181.92,181.89,4.50990073]
[1753022269361,3.71666443,181.92,181.9,4.50990073]
[1753022269561,3.71666443,181.92,181.91,4.50990073]
[1753022269761,3.71666443,181.94,181.91,4.50990073]
[1753022269959,3.71666443,181.94,181.92,4.50990073]
[1753022270158,3.71666443,181.94,181.93,3.02]
[1753022270951,3.71666443,181.94,181.93,7.52938389]
[1753022271359,3.71666443,181.96,181.93,3.02]
[1753022273665,6.96666443,181.96,181.93,3.02]
[1753022278368,139.09630526,181.96,181.93,3.02]
[1753022278763,132.12964083,181.96,181.93,3.02]
[1753022279072,132.12964083,181.96,181.94,4.50107904]
[1753022279265,132.12964083,181.96,181.95,7.43107904]
[1753022280473,132.12964083,181.96,181.95,2.93]
[1753022281766,135.32964083,181.96,181.95,2.93]
[1753022282368,137.61276311,181.96,181.93,2.93]
[1753022282570,3.2,181.95,181.94,2.93]
[1753022286579,134.41276311,181.96,181.94,2.93]
[1753022286783,134.41276311,181.96,181.88,7.51493965]
[1753022286980,134.41276311,181.96,181.9,2.93]
[1753022287284,134.41276311,181.96,181.92,2.93]
[1753022288086,134.41276311,181.96,181.93,4.50361402]
[1753022288288,134.41276311,181.96,181.91,5.4944]
[1753022288289,137.61276311,181.96,181.95,2.93]
[1753022292191,137.61276311,181.96,181.95,7.44593213]
[1753022293188,132.12964083,181.96,181.95,7.44593213]
[1753022294191,132.12964083,181.96,181.95,12.03087178]
[1753022294390,132.12964083,181.96,181.95,17.52437178]
[1753022294684,132.12964083,181.96,181.95,12.93943213]
[1753022295088,132.12964083,181.96,181.95,17.51243384]
[1753022296195,132.12964083,181.96,181.95,12.93943213]
[1753022296693,132.12964083,181.96,181.95,19.1035922]
[1753022297089,132.12964083,181.96,181.95,21.36546718]
[1753022297393,122.85660136,181.96,181.95,15.20130711]
[1753022299196,3.2,182.0,181.95,18.95404722]
[1753022299396,3.2,182.0,181.99,7.53075963]
[1753022299596,3.2,182.0,181.99,12.04669176]
[1753022300695,3.2,182.0,181.99,14.31877734]
[1753022301097,3.2,182.0,181.99,9.71801771]
[1753022304095,3.2,182.02,182.0,2.93]
[1753022304290,3.2,182.03,182.02,2.93]
[1753022304494,3.2,182.03,182.02,14.33383407]
[1753022305189,5.48312228,182.03,182.02,6.78801771]
[1753022310101,5.48312228,182.03,182.02,4.51593213]
[1753022312105,5.48312228,182.03,182.0,2.95]
[1753022312304,2.94,182.02,182.01,9.61114899]
[1753022313099,2.94,182.02,182.01,7.33138817]
[1753022314200,2.94,182.02,182.01,9.61075894]
[1753022315507,2.94,182.02,182.01,9.61055792]
[1753022315703,2.94,182.02,182.01,9.60972505]
[1753022316108,2.28312228,182.03,182.01,9.60972505]
[1753022316309,5.22312228,182.03,182.02,2.95]
[1753022317514,5.22312228,182.03,182.0,2.95]
[1753022317706,2.94,182.02,182.01,9.60939724]
[1753022321714,2.94,182.02,182.01,6.65939724]
[1753022322008,2.94,182.02,181.99,2.95]
[1753022322209,2.28312228,182.01,182.0,4.38112619]
[1753022322910,5.22312228,182.01,182.0,4.38112619]
[1753022323514,5.22312228,182.01,182.0,7.33112619]
[1753022325414,2.94,182.01,182.0,7.33112619]
[1753022328122,2.94,182.01,182.0,12.82312619]
[1753022328323,2.94,182.01,182.0,7.33112619]
[1753022329921,2.94,182.01,182.0,9.61199288]
[1753022333024,2.94,182.01,182.0,15.10399288]
[1753022334226,2.94,182.01,182.0,6.66199288]
[1753022334821,2.94,182.01,182.0,9.61199288]
[1753022335325,2.94,182.01,182.0,15.10399288]
[1753022336427,2.28312228,182.04,182.01,2.95]
[1753022336621,2.94,182.03,182.02,9.61199288]
[1753022337020,2.94,182.03,182.02,15.10319288]
[1753022337220,2.28312228,182.04,182.02,9.61199288]
[1753022337426,2.94,182.05,182.04,8.4408]
[1753022337724,2.94,182.05,182.04,15.10279288]
[1753022338321,2.94,182.05,182.0,7.84646497]
[1753022338520,2.94,182.05,182.01,2.28555024]
[1753022338727,3.25,182.02,182.01,3.23]
[1753022339028,2.28312228,182.03,182.02,8.7214]
[1753022339428,3.25,182.04,182.03,5.4911]
[1753022339921,3.25,182.04,182.03,8.7211]
[1753022340225,5.53312228,182.05,182.04,3.23]
[1753022341929,5.53312228,182.05,182.02,3.23]
[1753022341930,3.25,182.04,182.02,3.23]
[1753022343131,5.53312228,182.03,181.99,4.61646497]
[1753022343330,3.25,182.0,181.99,4.61646497]
[1753022343524,2.28312228,182.01,181.99,3.23]
[1753022344030,3.25,182.0,181.99,3.23]
[1753022345330,5.53312228,182.01,181.99,3.23]
[1753022346022,5.53312228,182.01,182.0,3.23]
[1753022346225,2.28312228,182.01,181.98,4.61646497]
[1753022346429,3.25,182.0,181.99,3.23]
[1753022347530,3.25,182.0,181.99,8.7223]
[1753022348130,3.25,182.0,181.99,3.23]
[1753022350334,3.25,182.0,181.99,4.37424535]
[1753022352135,3.25,182.0,181.99,13.09654535]
[1753022352934,2.28312228,182.01,181.99,13.09654535]
[1753022353134,5.53312228,182.01,182.0,13.09624535]
[1753022353636,5.53312228,182.01,182.0,7.60424535]
[1753022354436,5.53312228,182.01,182.0,4.37424535]
[1753022356139,5.53312228,182.01,182.0,13.09624535]
[1753022357745,5.53312228,182.01,182.0,7.60424535]
[1753022357941,5.53312228,182.01,182.0,4.37424535]
[1753022358443,3.25,182.01,182.0,7.60424535]
[1753022358644,5.53312228,182.01,182.0,7.60424535]
[1753022359143,5.53312228,182.01,182.0,13.09624535]
[1753022359938,5.53312228,182.01,182.0,4.37424535]
[1753022360847,5.53312228,182.01,182.0,7.60424535]
[1753022361450,5.53312228,182.01,182.0,13.09624535]
[1753022361745,5.53312228,182.01,182.0,7.60424535]
[1753022363150,10.20279802,182.01,182.0,4.37424535]
[1753022363948,4.71109802,182.01,182.0,7.60424535]
[1753022364348,4.71109802,182.01,182.0,3.23]
[1753022365147,10.20279802,182.01,182.0,3.23]
[1753022365345,4.71109802,182.01,182.0,3.23]
[1753022365846,3.25,182.0,181.99,8.7223]
[1753022366042,3.25,182.0,181.99,3.23]
[1753022366345,3.25,182.0,181.92,1.46109802]
[1753022366646,1.46109802,181.94,181.93,8.7241]
[1753022369649,1.46109802,181.98,181.94,3.22]
[1753022370751,1.46109802,181.98,181.97,5.4929]
[1753022370946,1.46109802,181.98,181.97,8.7129]
[1753022371148,2.28293091,182.0,181.97,3.22]
[1753022371449,5.30293091,182.0,181.99,3.22]
[1753022371749,2.28293091,182.0,181.99,8.7123]
[1753022371947,2.28293091,182.01,182.0,3.22]
[1753022372351,5.30293091,182.01,182.0,3.22]
[1753022372852,5.30293091,182.01,182.0,8.712]
[1753022373152,2.28293091,182.01,181.91,3.22]
[1753022373351,2.28293091,181.99,181.98,5.4925]
[1753022373552,5.30293091,181.99,181.98,8.7125]
[1753022374152,5.30293091,181.99,181.98,3.22]
[1753022374367,5.30293091,181.99,181.98,7.52998093]
[1753022374653,5.30293091,181.99,181.98,4.30998093]
[1753022374954,3.02,181.98,181.97,0.03793922]
[1753022375157,3.02,181.98,181.92,4.62429402]
[1753022375351,5.30293091,181.95,181.91,4.62429402]
[1753022375553,2.28293091,181.93,181.92,5.4944]
[1753022376055,2.28293091,181.93,181.92,8.7144]
[1753022386271,5.30293091,181.93,181.92,3.22]
[1753022386663,2.28293091,181.93,181.9,7.84429402]
[1753022386864,2.28293091,181.91,181.88,4.62429402]
[1753022387066,3.02,181.9,181.89,7.48542055]
[1753022387275,3.02,181.9,181.89,12.98072055]
[1753022387576,3.02,182.0,181.9,3.22]
[1753022387764,101.18,182.04,181.9,3.22]
[1753022387765,3.02,182.02,181.92,4.62429402]
[1753022388075,0.04012746,181.97,181.94,3.22]
[1753022388371,0.04012746,181.97,181.96,8.7132]
[1753022388568,5.30293091,182.01,181.96,3.22]
[1753022388768,3.02,182.0,181.96,3.22]
[1753022388972,3.02,181.99,181.98,5.4926]
[1753022389167,3.02,181.99,181.98,3.22]
[1753022389563,5.30293091,181.99,181.98,5.4926]
[1753022389966,5.30293091,181.99,181.98,8.7126]
[1753022390675,3.02,181.98,181.97,0.04057317]
[1753022394875,5.30293091,181.98,181.93,3.22]
[1753022395068,5.30293091,181.94,181.91,3.22]
[1753022395269,3.02,181.93,181.92,3.22]
[1753022395464,2.28293091,181.96,181.92,3.22]
[1753022396171,2.28293091,181.96,181.95,3.22]
[1753022396372,2.32011023,181.96,181.95,3.22]
[1753022397672,2.32011023,181.96,181.95,8.7135]
[1753022398376,0.03717932,181.96,181.95,8.7135]
[1753022401476,5.49293091,182.02,181.95,3.22]
[1753022401678,5.49293091,182.02,181.96,2.95]
[1753022401871,3.21,182.01,181.96,2.95]
[1753022402072,3.21,182.0,181.99,2.95]
[1753022402382,2.28293091,182.0,181.96,2.95]
[1753022402682,5.49293091,181.98,181.97,2.95]
[1753022403069,5.4917,182.02,181.97,2.95]
[1753022403272,5.49293091,182.02,181.97,2.95]
[1753022403477,3.21,182.01,181.97,2.95]
[1753022403681,3.21,182.01,181.98,5.4924]
[1753022403879,3.21,182.01,181.99,2.95]
[1753022404786,3.21,182.0,181.97,5.4928]
[1753022404981,3.21,181.99,181.98,4.28037436]
[1753022405282,3.21,181.99,181.98,7.23037436]
[1753022406092,2.28293091,182.0,181.98,7.23037436]
[1753022406388,5.49293091,182.0,181.99,7.23037436]
[1753022408391,3.21,182.0,181.99,7.23037436]
[1753022408690,2.28293091,182.04,181.99,4.28037436]
[1753022408892,2.28293091,182.02,182.01,2.95]
[1753022409080,5.49293091,182.02,182.01,2.95]
[1753022409281,3.21,182.01,182.0,2.95]
[1753022410693,2.28293091,182.02,182.0,7.23005079]
[1753022410891,5.49293091,182.02,182.0,2.95]
[1753022411092,5.49293091,182.02,182.01,2.95]
[1753022411392,5.49293091,182.02,182.01,7.22966356]
[1753022411594,2.28293091,182.02,182.01,7.22966356]
[1753022411895,3.21,182.02,182.01,7.22966356]
[1753022412993,5.49293091,182.02,182.01,7.22966356]
[1753022414095,5.49293091,182.02,182.01,2.95]
[1753022414592,2.28293091,182.02,182.01,2.95]
[1753022414793,3.21,182.03,182.02,2.95]
[1753022415998,3.21,182.03,182.02,8.4414]
[1753022416398,3.21,182.03,182.02,2.95]
[1753022417100,2.28293091,182.04,182.02,7.22694672]
[1753022417398,176.88165719,182.09,182.03,7.22653135]
[1753022417698,176.88165719,182.09,182.01,2.28293091]
[1753022417699,3.21,182.1,182.05,2.95]
[1753022417898,3.21,182.1,182.07,2.95]
[1753022418296,3.21,182.08,182.06,0.03771422]
[1753022418994,3.21,182.08,182.06,2.98771422]
[1753022419895,2.28293091,182.09,182.06,5.52791422]
[1753022420100,3.21,182.08,182.07,2.95]
[1753022420998,3.21,182.08,182.06,0.03771422]
[1753022421296,5.49293091,182.07,182.06,2.98771422]
[1753022422299,369.26,182.15,182.06,2.98771422]
[1753022422300,2.28293091,182.08,182.06,2.98771422]
[1753022422805,2.28293091,182.08,182.07,2.95]
[1753022423104,5.49293091,182.08,182.07,2.95]
[1753022423499,3.21,182.07,182.06,2.98771422]
[1753022424102,2.28293091,182.08,182.06,2.98771422]
[1753022424299,5.49293091,182.08,182.06,2.98771422]
[1753022424600,5.49293091,182.08,182.07,2.95]
[1753022424802,2.28293091,182.08,182.07,2.95]
[1753022425002,5.49293091,182.1,182.07,5.4899]
[1753022425201,5.49293091,182.1,182.08,2.95]
[1753022425704,5.49293091,182.1,182.06,5.52781422]
[1753022425903,3.21,182.09,182.07,2.95]
[1753022426204,3.21,182.08,182.06,5.52781422]
[1753022426704,3.21,182.08,182.07,2.95]
[1753022428206,5.31293091,182.1,182.08,3.12]
[1753022428503,5.31293091,182.1,182.09,3.12]
[1753022431004,2.28293091,182.1,182.07,8.6098]
[1753022431205,2.28293091,182.08,182.07,3.12]
[1753022431405,5.31293091,182.08,182.07,3.12]
[1753022431706,5.31293091,182.08,182.07,8.6099]
[1753022432102,5.31293091,182.08,182.07,3.12]
[1753022432307,3.03,182.08,182.07,3.12]
[1753022432507,5.31293091,182.08,182.07,3.12]
[1753022433808,5.31293091,182.08,182.07,8.6099]
[1753022435206,5.4882,182.13,182.09,3.12]
[1753022435207,2.28293091,182.12,182.09,3.12]
[1753022435709,2.28293091,182.12,182.1,5.4888]
[1753022435910,2.28293091,182.12,182.11,3.12]
[1753022436311,5.31293091,182.12,182.11,3.12]
[1753022436810,3.03,182.11,182.1,0.04021414]
[1753022437211,3.03,182.11,182.1,3.16021414]
[1753022437412,3.03,182.11,182.1,0.04021414]
[1753022437712,3.03,182.11,182.1,3.16021414]
[1753022438808,3.03,182.11,182.1,8.64921414]
[1753022439013,2.28293091,182.12,182.1,8.64921414]
[1753022439216,5.31293091,182.12,182.11,3.12]
[1753022440616,5.31293091,182.12,182.11,8.6087]
[1753022440807,2.28293091,182.12,182.11,5.4887]
[1753022441014,5.31293091,182.18,182.11,4.26601861]
[1753022441209,2.28293091,182.18,182.15,3.12]
[1753022441415,2.28293091,182.16,182.07,4.62429402]
[1753022441717,2.28293091,182.16,182.06,13.26313091]
[1753022441718,3.03,182.13,182.12,8.6083]
[1753022442018,2.28293091,182.14,182.12,3.12]
[1753022442216,5.31293091,182.14,182.12,3.12]
[1753022443313,2.28293091,182.14,182.13,8.6081]
[1753022444319,5.31293091,182.14,182.13,8.6081]
[1753022445517,5.31293091,182.14,182.13,5.4881]
[1753022445921,2.28293091,182.14,182.12,8.6083]
[1753022446118,3.03,182.13,182.12,8.6083]
[1753022446319,2.28293091,182.14,182.12,3.12]
[1753022446619,5.31293091,182.14,182.12,3.12]
[1753022446921,3.03,182.13,182.11,3.15819154]
[1753022447221,101.1,182.24,182.11,3.15819154]
[1753022447222,3.03,182.12,182.11,3.15819154]
[1753022447422,5.31293091,182.12,182.11,3.15819154]
[1753022447723,5.31293091,182.12,182.11,3.12]
[1753022447922,2.28293091,182.12,182.11,3.12]
[1753022448318,2.28293091,182.12,182.11,8.6087]
[1753022450224,5.31293091,182.12,182.11,8.6087]
[1753022450419,5.31293091,182.12,182.11,5.4887]
[1753022450924,5.31293091,182.12,182.11,8.6087]
[1753022451525,7.77013091,182.16,182.12,5.4882]
[1753022451729,5.31293091,182.13,182.12,8.6082]
[1753022451928,5.31293091,182.13,182.12,3.12]
[1753022453833,5.31293091,182.13,182.12,8.6084]
[1753022455534,3.03,182.13,182.12,8.6084]
[1753022455835,5.31293091,182.13,182.12,8.6084]
[1753022456034,3.03,182.13,182.12,8.6084]
[1753022456236,2.28293091,182.13,182.12,3.12]
[1753022457135,2.28293091,182.13,182.12,8.6084]
[1753022459936,3.14,182.15,182.13,3.11]
[1753022459937,2.28293091,182.15,182.13,3.11]
[1753022460936,2.28293091,182.15,182.14,5.4878]
[1753022461133,3.14,182.16,182.14,3.11]
[1753022461540,2.28293091,182.17,182.11,3.11]
[1753022461748,3.14,182.14,182.13,3.11]
[1753022461947,5.42293091,182.14,182.13,0.03679082]
[1753022462145,3.14,182.13,182.08,3.11]
[1753022462344,2.28293091,182.16,182.09,4.28068941]
[1753022462345,2.28293091,182.1,182.09,4.28068941]
[1753022462850,5.42293091,182.1,182.09,4.28068941]
[1753022463148,3.14,182.1,182.08,3.11]
[1753022463351,3.14,182.09,182.08,3.11]
[1753022463648,3.14,182.09,182.08,7.39166469]
[1753022463848,3.14,182.09,182.08,12.88126469]
[1753022464548,3.14,182.09,182.08,8.5996]
[1753022467846,5.42293091,182.09,182.08,8.5996]
[1753022469146,5.42293091,182.09,182.08,5.4896]
[1753022469451,5.42293091,182.09,182.08,8.5996]
[1753022469649,3.17846933,182.11,182.1,5.489]
[1753022469949,0.03846933,182.11,182.1,8.599]
[1753022472154,5.42293091,182.15,182.12,5.4882]
[1753022472353,5.42293091,182.15,182.14,3.11]
[1753022472955,2.28293091,182.15,182.14,3.11]
[1753022474453,5.42293091,182.15,182.14,8.5978]
[1753022475653,5.42293091,182.15,182.14,3.11]
[1753022476050,2.28293091,182.15,182.13,0.03839958]
[1753022476352,3.14,182.14,182.13,8.63649958]
[1753022476551,5.42293091,182.15,182.14,3.11]
[1753022477151,2.28293091,182.17,182.14,3.11]
[1753022477357,3.14,182.16,182.15,3.11]
[1753022477959,3.14,182.16,182.13,8.63629958]
[1753022478159,2.28293091,182.14,182.13,0.03839958]
[1753022478459,5.42293091,182.14,182.13,0.03839958]
[1753022478857,5.42293091,182.14,182.13,3.14839958]
[1753022479558,5.42293091,182.14,182.13,8.63649958]
[1753022480661,5.42293091,182.14,182.13,0.03839958]
[1753022481864,5.42293091,182.14,182.13,3.14839958]
[1753022483460,5.42293091,182.14,182.13,0.03839958]
[1753022484564,10.91073091,182.14,182.13,0.03839958]
[1753022485361,5.42293091,182.14,182.13,0.03839958]
[1753022485858,10.91073091,182.14,182.13,0.03839958]
[1753022486257,5.42293091,182.14,182.13,0.03839958]
[1753022486467,10.91073091,182.14,182.13,0.03839958]
[1753022488168,8.6278,182.14,182.13,0.03839958]
[1753022488368,10.91073091,182.14,182.13,0.03839958]
[1753022488770,5.42293091,182.14,182.13,3.13839958]
[1753022491872,10.91073091,182.14,182.13,3.13839958]
[1753022492070,10.91073091,182.14,182.13,0.03839958]
[1753022496176,10.91073091,182.14,182.13,3.13839958]
[1753022497176,10.08685764,182.14,182.13,3.13839958]
[1753022498277,4.59905764,182.14,182.13,3.13839958]
[1753022498477,4.59905764,182.14,182.13,8.62649958]
[1753022498674,1.45905764,182.16,182.14,3.1]
[1753022499178,1.45905764,182.16,182.15,8.5873]
[1753022500483,1.45905764,182.17,182.15,3.1]
[1753022500776,3.22,182.22,182.15,3.1]
[1753022500977,1.45905764,182.2,182.16,4.55905764]
[1753022501175,162.73863104,182.23,182.21,8.5855]
[1753022501368,162.73863104,182.23,182.22,3.1]
[1753022501771,165.95863104,182.23,182.22,3.1]
[1753022503182,3.22,182.22,182.21,3.13890495]
[1753022503381,5.49708278,182.22,182.21,3.13890495]
[1753022503979,2.27708278,182.22,182.21,3.13890495]
[1753022504574,5.49708278,182.22,182.21,3.13890495]
[1753022505979,3.22,182.22,182.21,8.62460495]
[1753022506280,162.73863104,182.23,182.21,8.62460495]
[1753022506281,165.01571382,182.23,182.22,3.1]
[1753022506877,3.22,182.22,182.21,0.03890495]
[1753022508182,3.22,182.22,182.21,3.13890495]
[1753022509683,3.22,182.22,182.21,8.62460495]
[1753022510774,168.23571382,182.23,182.22,8.5854]
[1753022511085,165.01571382,182.23,182.22,8.5854]
[1753022514586,168.23571382,182.23,182.22,3.1]
[1753022515482,165.01571382,182.23,182.22,3.1]
[1753022516088,168.23571382,182.23,182.22,3.1]
[1753022518585,168.23571382,182.23,182.22,8.5854]
[1753022519186,165.01571382,182.23,182.22,8.5854]
[1753022520186,168.12571382,182.23,182.22,3.1]
[1753022521283,103.27708278,182.26,182.22,2.97]
[1753022521678,103.27708278,182.26,182.25,5.4845]
[1753022521987,106.38708278,182.26,182.25,8.4545]